[Event "22nd Ruzomberok Open 2019"]
[Site "Ruzomberok"]
[Date "2019.07.06"]
[Round "8.20"]
[White "Karcol, Jan"]
[Black "Korenova, Simona"]
[Result "1/2-1/2"]
[ECO "D05"]
[WhiteElo "1882"]
[BlackElo "1764"]
[Annotator "NA"]
[PlyCount "123"]
[EventDate "2019.06.29"]
[EventType "swiss"]
[EventCountry "SVK"]
[SourceTitle "playchess.com"]
[Source "ChessBase"]
[SourceQuality "1"]
[TimeControl "40/5400+30:1800+30"]

1. d4 {[%emt 0:00:00]} d5 {[%emt 0:00:00]} 2. Nf3 {[%emt 0:00:00]} Nf6 {[%emt 0:00:15]} 3. e3 {[%emt 0:00:14]} e6 {[%emt 0:00:21]} 4. Bd3 {[%emt 0:00:13]} c5 {[%emt 0:00:24]} 5. c3 {[%emt 0:00:26]} Nc6 {[%emt 0:00:31]} 6. O-O {[%emt 0:00:12]} Bd6 {[%emt 0:00:33]} 7. Nbd2 {[%emt 0:00:09]} O-O {[%emt 0:00:38]} 8. dxc5 {[%emt 0:00:35]} Bxc5 {[%emt 0:00:14]} 9. b4 {[%emt 0:01:59]} Bd6 {[%emt 0:00:53]} 10. Bb2 {[%emt 0:00:26]} e5 {[%emt 0:03:28]} 11. e4 {[%emt 0:00:10]} dxe4 {[%emt 0:00:56]} 12. Nxe4 {[%emt 0:00:03]} Bc7 {[%emt 0:05:10]} 13. a3 {[%emt 0:02:19]} b6 {[%emt 0:04:48]} 14. c4 {[%emt 0:05:11]} Bb7 {[%emt 0:02:31]} 15. b5 {[%emt 0:06:20]} Na5 {[%emt 0:02:49]} 16. Qe2 {[%emt 0:06:59]} Nxe4 {[%emt 0:13:52]} 17. Bxe4 {[%emt 0:00:42]} Bxe4 {[%emt 0:01:30]} 18. Qxe4 {[%emt 0:00:03]} Qe7 {[%emt 0:00:36]} 19. a4 {[%emt 0:04:12]} Rad8 {[%emt 0:02:28]} 20. Rad1 {[%emt 0:10:50]} f5 {[%emt 0:07:15]} 21. Qc2 {[%emt 0:05:06]} Qc5 {[%emt 0:15:05]} 22. Rxd8 {[%emt 0:02:59]} Bxd8 {[%emt 0:02:01]} 23. Nxe5 {[%emt 0:01:17]} Qc7 {[%emt 0:01:00]} 24. Rc1 {[%emt 0:09:13]} Be7 {[%emt 0:02:21]} 25. f4 {[%emt 0:05:10]} Qc5+ {[%emt 0:08:59]} 26. Kh1 {[%emt 0:01:42]} Qe3 {[%emt 0:01:19]} 27. Qc3 {[%emt 0:09:51]} Qxc3 {[%emt 0:04:44]} 28. Bxc3 {[%emt 0:00:32]} Nb3 {[%emt 0:00:56]} 29. Rd1 {[%emt 0:00:29]} Nc5 {[%emt 0:02:15]} 30. Bb4 {[%emt 0:01:02]} Ne4 {[%emt 0:02:37]} 31. Bxe7 {[%emt 0:01:23]} Nf2+ {[%emt 0:00:05]} 32. Kg1 {[%emt 0:00:26]} Nxd1 {[%emt 0:00:07]} 33. Bxf8 {[%emt 0:00:02]} Kxf8 {[%emt 0:00:06]} 34. c5 {[%emt 0:06:39]} Ke8 {[%emt 0:07:30]} 35. cxb6 {[%emt 0:00:37]} axb6 {[%emt 0:00:05]} 36. Nc4 {[%emt 0:00:19]} Kd8 {[%emt 0:00:39]} 37. Nxb6 {[%emt 0:00:27]} Nc3 {[%emt 0:00:17]} 38. Kf2 {[%emt 0:03:16]} Kc7 {[%emt 0:00:47]} 39. a5 {[%emt 0:01:57]} Nxb5 {[%emt 0:00:23]} 40. Nc4 {[%emt 0:01:46]} Kc6 {[%emt 0:01:49]} 41. Ke3 {[%emt 0:32:08]} Kc5 {[%emt 0:35:41]} 42. Kd3 {[%emt 0:00:17]} Nc7 {[%emt 0:01:44]} 43. g3 {[%emt 0:02:21]} Na6 {[%emt 0:00:00]} 44. Kc3 {[%emt 0:00:00]} g6 {[%emt 0:00:00]} 45. h4 {[%emt 0:00:00]} Nc7 {[%emt 0:00:00]} 46. Kd3 {[%emt 0:00:00]} Na6 {[%emt 0:00:00]} 47. h5 {[%emt 0:00:00]} Nb4+ {[%emt 0:00:00]} 48. Kc3 {[%emt 0:00:00]} Nd5+ {[%emt 0:00:00]} 49. Kd3 {[%emt 0:00:00]} Nb4+ {[%emt 0:00:00]} 50. Kc3 {[%emt 0:00:00]} Nd5+ {[%emt 0:00:00]} 51. Kb3 {[%emt 0:00:00]} Kb5 {[%emt 0:00:00]} 52. hxg6 {[%emt 0:00:00]} hxg6 {[%emt 0:00:00]} 53. Ne5 {[%emt 0:00:00]} Nf6 {[%emt 0:00:00]} 54. Nxg6 {[%emt 0:00:00]} Ne4 {[%emt 0:00:00]} 55. g4 {[%emt 0:00:00]} fxg4 {[%emt 0:00:00]} 56. f5 {[%emt 0:00:00]} Kxa5 {[%emt 0:00:00]} 57. Kc4 {[%emt 0:00:00]} Nd6+ {[%emt 0:00:00]} 58. Kd5 {[%emt 0:00:00]} Nxf5 {[%emt 0:00:00]} 59. Ke4 {[%emt 0:00:00]} g3 {[%emt 0:00:00]} 60. Kf3 {[%emt 0:00:00]} Kb4 {[%emt 0:00:00]} 61. Nh4 {[%emt 0:00:00]} Nxh4+ {[%emt 0:00:00]} 62. Kxg3 1/2-1/2

[Event "22nd Ruzomberok Open 2019"]
[Site "Ruzomberok"]
[Date "2019.07.06"]
[Round "8.21"]
[White "Tomanek, Rafael"]
[Black "Zentko, Ladislav"]
[Result "1/2-1/2"]
[ECO "D43"]
[WhiteElo "1885"]
[BlackElo "1732"]
[Annotator "NA"]
[PlyCount "51"]
[EventDate "2019.06.29"]
[EventType "swiss"]
[EventCountry "SVK"]
[SourceTitle "playchess.com"]
[Source "ChessBase"]
[SourceQuality "1"]
[TimeControl "40/5400+30:1800+30"]

1. d4 {[%emt 0:00:00]} Nf6 {[%emt 0:00:00]} 2. Nf3 {[%emt 0:00:00]} d5 {[%emt 0:00:01]} 3. c4 {[%emt 0:00:00]} e6 {[%emt 0:00:15]} 4. Nc3 {[%emt 0:00:02]} c6 {[%emt 0:01:19]} 5. Bg5 {[%emt 0:01:37]} Be7 {[%emt 0:00:41]} 6. e3 {[%emt 0:00:18]} Nbd7 {[%emt 0:03:43]} 7. cxd5 {[%emt 0:02:54]} exd5 {[%emt 0:01:07]} 8. Bd3 {[%emt 0:00:23]} Ne4 {[%emt 0:04:25]} 9. Bxe7 {[%emt 0:03:36]} Qxe7 {[%emt 0:00:37]} 10. Qc2 {[%emt 0:03:23]} Nxc3 {[%emt 0:03:02]} 11. bxc3 {[%emt 0:05:58]} Nf6 {[%emt 0:00:34]} 12. O-O {[%emt 0:01:16]} O-O {[%emt 0:05:08]} 13. Ne5 {[%emt 0:04:58]} Be6 {[%emt 0:11:18]} 14. Rab1 {[%emt 0:14:08]} Rfc8 {[%emt 0:13:30]} 15. Qe2 {[%emt 0:15:59]} Rc7 {[%emt 0:06:51]} 16. c4 {[%emt 0:05:25]} dxc4 {[%emt 0:01:34]} 17. Bxc4 {[%emt 0:04:32]} Bxc4 {[%emt 0:01:22]} 18. Qxc4 {[%emt 0:06:30]} Nd7 {[%emt 0:05:43]} 19. Nxd7 {[%emt 0:02:22]} Rxd7 {[%emt 0:00:31]} 20. Rb2 {[%emt 0:03:25]} Qe4 {[%emt 0:05:42]} 21. Rfb1 {[%emt 0:01:12]} b6 {[%emt 0:05:55]} 22. Rc1 {[%emt 0:01:14]} Rd6 {[%emt 0:02:26]} 23. g3 {[%emt 0:04:18]} h5 {[%emt 0:00:29]} 24. Qc2 {[%emt 0:01:41]} Qf3 25. Qe2 Qg4 26. Rbc2 1/2-1/2

[Event "22nd Ruzomberok Open 2019"]
[Site "Ruzomberok"]
[Date "2019.07.06"]
[Round "8.22"]
[White "Mc Aleenan, Charles"]
[Black "Mikulec, Martin"]
[Result "1-0"]
[ECO "A45"]
[WhiteElo "1746"]
[BlackElo "1870"]
[Annotator "NA"]
[PlyCount "37"]
[EventDate "2019.06.29"]
[EventType "swiss"]
[EventCountry "SVK"]
[SourceTitle "playchess.com"]
[Source "ChessBase"]
[SourceQuality "1"]
[TimeControl "40/5400+30:1800+30"]

1. d4 Nf6 2. Bg5 c5 3. d5 Qb6 4. Nc3 Qxb2 5. Bd2 Qb6 6. e4 d6 7. Rb1 Qd8 8. f4 e5 9. fxe5 dxe5 10. Nf3 Bd6 11. Bb5+ Bd7 12. Bc4 b6 13. O-O O-O 14. Nh4 Nxe4 15. Nxe4 Qxh4 16. Nxd6 Qd4+ 17. Kh1 Bg4 18. Qe1 Bd7 19. Qd1 1-0

[Event "22nd Ruzomberok Open 2019"]
[Site "Ruzomberok"]
[Date "2019.07.06"]
[Round "8.23"]
[White "Laurencsik, Alexander"]
[Black "Stanko, Ivan"]
[Result "1/2-1/2"]
[ECO "A05"]
[WhiteElo "1742"]
[BlackElo "1859"]
[Annotator "NA"]
[PlyCount "100"]
[EventDate "2019.06.29"]
[EventType "swiss"]
[EventCountry "SVK"]
[SourceTitle "playchess.com"]
[Source "ChessBase"]
[SourceQuality "1"]
[TimeControl "40/5400+30:1800+30"]

1. Nf3 {[%emt 0:00:00]} Nf6 {[%emt 0:00:00]} 2. g3 {[%emt 0:00:00]} g6 {[%emt 0:00:32]} 3. d3 {[%emt 0:00:00]} d5 {[%emt 0:00:51]} 4. Bg2 {[%emt 0:00:03]} Bg7 {[%emt 0:00:35]} 5. Nbd2 {[%emt 0:00:14]} O-O {[%emt 0:01:21]} 6. O-O {[%emt 0:00:09]} Re8 {[%emt 0:01:45]} 7. e4 {[%emt 0:00:39]} dxe4 {[%emt 0:04:40]} 8. dxe4 {[%emt 0:00:06]} e5 {[%emt 0:03:10]} 9. Qe2 {[%emt 0:00:16]} Nc6 {[%emt 0:00:47]} 10. c3 {[%emt 0:00:08]} Qe7 {[%emt 0:05:12]} 11. h4 {[%emt 0:01:02]} Bg4 {[%emt 0:01:29]} 12. Nc4 {[%emt 0:14:02]} b5 {[%emt 0:04:17]} 13. Ne3 {[%emt 0:00:51]} Bd7 {[%emt 0:01:48]} 14. Nh2 {[%emt 0:02:47]} Rab8 {[%emt 0:02:32]} 15. Neg4 {[%emt 0:03:28]} Nxg4 {[%emt 0:08:21]} 16. Nxg4 {[%emt 0:01:45]} Na5 {[%emt 0:00:17]} 17. f4 {[%emt 0:07:11]} Qc5+ {[%emt 0:03:31]} 18. Kh2 {[%emt 0:05:20]} Bxg4 {[%emt 0:11:56]} 19. Qxg4 {[%emt 0:00:11]} Nc4 {[%emt 0:00:21]} 20. f5 {[%emt 0:02:20]} Ne3 {[%emt 0:04:50]} 21. Bxe3 {[%emt 0:00:14]} Qxe3 {[%emt 0:00:00]} 22. Rae1 {[%emt 0:05:45]} Qb6 {[%emt 0:01:47]} 23. Re2 {[%emt 0:07:02]} Rbd8 {[%emt 0:03:12]} 24. Ref2 {[%emt 0:04:03]} Rf8 {[%emt 0:00:49]} 25. f6 {[%emt 0:01:31]} Bh8 {[%emt 0:01:19]} 26. h5 {[%emt 0:06:03]} Rd6 {[%emt 0:04:21]} 27. Qh4 {[%emt 0:02:42]} Rfd8 {[%emt 0:01:13]} 28. g4 {[%emt 0:03:12]} Rd2 {[%emt 0:00:41]} 29. hxg6 {[%emt 0:03:49]} hxg6 {[%emt 0:00:49]} 30. g5 {[%emt 0:08:29]} Rxf2 {[%emt 0:01:44]} 31. Rxf2 {[%emt 0:01:07]} Rd1 {[%emt 0:01:33]} 32. Bf3 {[%emt 0:01:52]} Rd3 {[%emt 0:03:45]} 33. Kg3 {[%emt 0:03:21]} Qe3 {[%emt 0:03:01]} 34. Qg4 {[%emt 0:01:10]} Rd8 {[%emt 0:01:14]} 35. Re2 {[%emt 0:04:47]} Qg1+ {[%emt 0:01:13]} 36. Kh4 {[%emt 0:03:11]} Qf1 {[%emt 0:03:04]} 37. Qg2 {[%emt 0:01:48]} Qc1 {[%emt 0:00:21]} 38. Rf2 {[%emt 0:02:08]} Qf4+ {[%emt 0:01:56]} 39. Bg4 {[%emt 0:01:28]} Qc1 {[%emt 0:01:11]} 40. Rf1 {[%emt 0:01:25]} Qe3 {[%emt 0:06:19]} 41. Qf3 {[%emt 0:34:12]} Qc5 {[%emt 0:33:25]} 42. Rd1 {[%emt 0:00:00]} Rxd1 {[%emt 0:00:00]} 43. Qxd1 {[%emt 0:00:00]} Qf2+ {[%emt 0:00:00]} 44. Kh3 {[%emt 0:00:00]} Qe3+ {[%emt 0:00:00]} 45. Kh4 {[%emt 0:00:00]} Qf2+ 46. Kh3 Qe3+ 47. Kh4 Qxe4 48. Qd8+ Kh7 49. Qxc7 Qh1+ 50. Bh3 Qe1+ 1/2-1/2

[Event "22nd Ruzomberok Open 2019"]
[Site "Ruzomberok"]
[Date "2019.07.06"]
[Round "8.24"]
[White "Pasztor, Ladislav"]
[Black "Taragelova, Martina"]
[Result "1/2-1/2"]
[ECO "A29"]
[WhiteElo "1857"]
[BlackElo "1719"]
[Annotator "NA"]
[PlyCount "56"]
[EventDate "2019.06.29"]
[EventType "swiss"]
[EventCountry "SVK"]
[SourceTitle "playchess.com"]
[Source "ChessBase"]
[SourceQuality "1"]
[TimeControl "40/5400+30:1800+30"]

1. c4 {[%emt 0:00:00]} e5 {[%emt 0:00:00]} 2. Nc3 {[%emt 0:00:00]} Nf6 {[%emt 0:00:00]} 3. Nf3 {[%emt 0:00:36]} Nc6 {[%emt 0:00:07]} 4. g3 {[%emt 0:00:13]} d5 {[%emt 0:00:18]} 5. cxd5 {[%emt 0:00:16]} Nxd5 {[%emt 0:00:10]} 6. d3 {[%emt 0:00:50]} Be7 {[%emt 0:01:18]} 7. Bg2 {[%emt 0:00:16]} Nb6 {[%emt 0:00:40]} 8. O-O {[%emt 0:02:25]} O-O {[%emt 0:01:06]} 9. a3 {[%emt 0:01:02]} Be6 {[%emt 0:03:00]} 10. b4 {[%emt 0:02:08]} f6 {[%emt 0:01:01]} 11. Bb2 {[%emt 0:03:29]} Qd7 {[%emt 0:04:19]} 12. Rc1 {[%emt 0:07:07]} Rfd8 {[%emt 0:03:36]} 13. Qc2 {[%emt 0:04:13]} Rac8 {[%emt 0:06:30]} 14. Rfe1 {[%emt 0:02:33]} Qe8 {[%emt 0:08:58]} 15. Ne4 {[%emt 0:06:26]} Qf7 {[%emt 0:02:55]} 16. Nfd2 {[%emt 0:05:23]} a6 {[%emt 0:03:55]} 17. Nc5 {[%emt 0:07:18]} Bxc5 {[%emt 0:01:17]} 18. bxc5 {[%emt 0:03:43]} Nd5 {[%emt 0:02:18]} 19. Nc4 {[%emt 0:03:32]} Nde7 {[%emt 0:04:08]} 20. Ne3 {[%emt 0:06:27]} Nd5 {[%emt 0:08:31]} 21. Nxd5 {[%emt 0:07:55]} Bxd5 {[%emt 0:00:10]} 22. Bxd5 {[%emt 0:00:07]} Qxd5 {[%emt 0:00:26]} 23. Qc4 {[%emt 0:00:20]} Ne7 {[%emt 0:11:13]} 24. f3 {[%emt 0:03:16]} b5 {[%emt 0:07:32]} 25. cxb6 {[%emt 0:05:36]} Qxc4 {[%emt 0:00:37]} 26. Rxc4 {[%emt 0:00:35]} cxb6 {[%emt 0:00:32]} 27. Rec1 {[%emt 0:00:48]} Rxc4 {[%emt 0:00:42]} 28. Rxc4 {[%emt 0:00:10]} Rc8 {[%emt 0:00:42]} 1/2-1/2

[Event "22nd Ruzomberok Open 2019"]
[Site "Ruzomberok"]
[Date "2019.07.06"]
[Round "8.25"]
[White "Verba, Vladimir"]
[Black "Bartanus, Stanislav"]
[Result "0-1"]
[ECO "B24"]
[WhiteElo "1709"]
[BlackElo "1781"]
[Annotator "NA"]
[PlyCount "66"]
[EventDate "2019.06.29"]
[EventType "swiss"]
[EventCountry "SVK"]
[SourceTitle "playchess.com"]
[Source "ChessBase"]
[SourceQuality "1"]
[TimeControl "40/5400+30:1800+30"]

1. e4 {[%emt 0:00:00]} c5 {[%emt 0:02:04]} 2. Nc3 {[%emt 0:00:28]} Nc6 {[%emt 0:01:03]} 3. Bb5 {[%emt 0:00:24]} Nd4 {[%emt 0:00:59]} 4. Bd3 {[%emt 0:00:24]} e6 {[%emt 0:04:39]} 5. Nf3 {[%emt 0:00:28]} Nf6 {[%emt 0:07:15]} 6. Nxd4 {[%emt 0:00:20]} cxd4 {[%emt 0:00:02]} 7. Ne2 {[%emt 0:00:14]} e5 {[%emt 0:00:29]} 8. c3 {[%emt 0:01:02]} dxc3 {[%emt 0:03:58]} 9. bxc3 {[%emt 0:00:17]} d5 {[%emt 0:00:28]} 10. O-O {[%emt 0:09:27]} Be7 {[%emt 0:08:05]} 11. f4 {[%emt 0:09:01]} O-O {[%emt 0:05:19]} 12. Qc2 {[%emt 0:05:21]} Qb6+ {[%emt 0:09:27]} 13. Kh1 {[%emt 0:00:47]} Ng4 {[%emt 0:00:49]} 14. fxe5 {[%emt 0:11:58]} Nf2+ {[%emt 0:00:34]} 15. Rxf2 {[%emt 0:00:09]} Qxf2 {[%emt 0:00:03]} 16. Qd1 {[%emt 0:04:42]} dxe4 {[%emt 0:01:04]} 17. Bc4 {[%emt 0:07:59]} Bg4 {[%emt 0:03:07]} 18. Qg1 {[%emt 0:05:13]} Qxg1+ {[%emt 0:02:15]} 19. Kxg1 {[%emt 0:03:51]} Bxe2 {[%emt 0:02:00]} 20. Bxe2 {[%emt 0:00:26]} Rfd8 {[%emt 0:00:26]} 21. Rb1 {[%emt 0:02:53]} b6 {[%emt 0:00:43]} 22. Kf2 {[%emt 0:01:19]} Bg5 {[%emt 0:01:34]} 23. Ke1 {[%emt 0:00:25]} Rd5 {[%emt 0:01:20]} 24. e6 {[%emt 0:03:06]} fxe6 {[%emt 0:02:08]} 25. Bc4 {[%emt 0:03:15]} Rd6 {[%emt 0:01:31]} 26. Rb5 {[%emt 0:00:46]} h6 {[%emt 0:03:19]} 27. Re5 {[%emt 0:00:28]} Rad8 {[%emt 0:01:04]} 28. Ba3 {[%emt 0:09:08]} Rxd2 {[%emt 0:00:58]} 29. Rxe6 {[%emt 0:06:06]} Kh8 {[%emt 0:04:56]} 30. Kf1 {[%emt 0:08:41]} e3 {[%emt 0:06:30]} 31. Re4 {[%emt 0:02:45]} Rf2+ {[%emt 0:01:42]} 32. Ke1 {[%emt 0:00:48]} Rxg2 {[%emt 0:01:56]} 33. h4 {[%emt 0:00:38]} Bf6 {[%emt 0:01:53]} 0-1

[Event "22nd Ruzomberok Open 2019"]
[Site "Ruzomberok"]
[Date "2019.07.06"]
[Round "8.26"]
[White "Cabanova, Kristina"]
[Black "Gasper, Jaroslav"]
[Result "1-0"]
[ECO "A40"]
[WhiteElo "1728"]
[BlackElo "1772"]
[Annotator "NA"]
[PlyCount "79"]
[EventDate "2019.06.29"]
[EventType "swiss"]
[EventCountry "SVK"]
[SourceTitle "playchess.com"]
[Source "ChessBase"]
[SourceQuality "1"]
[TimeControl "40/5400+30:1800+30"]

1. d4 {[%emt 0:00:00]} e6 {[%emt 0:00:10]} 2. Nf3 {[%emt 0:00:00]} d5 {[%emt 0:00:16]} 3. c4 {[%emt 0:00:00]} Nf6 {[%emt 0:01:18]} 4. e3 {[%emt 0:00:10]} c5 {[%emt 0:00:23]} 5. Nc3 {[%emt 0:01:27]} cxd4 {[%emt 0:00:24]} 6. Nxd4 {[%emt 0:01:09]} Nc6 {[%emt 0:01:44]} 7. cxd5 {[%emt 0:08:37]} Nxd4 {[%emt 0:09:04]} 8. Qxd4 {[%emt 0:00:43]} Nxd5 {[%emt 0:06:07]} 9. Nxd5 {[%emt 0:01:05]} exd5 {[%emt 0:02:48]} 10. Bd2 {[%emt 0:02:45]} a6 {[%emt 0:00:47]} 11. Be2 {[%emt 0:02:40]} Be6 {[%emt 0:00:49]} 12. Bf3 {[%emt 0:01:35]} Rc8 {[%emt 0:01:47]} 13. Bc3 {[%emt 0:02:27]} h5 {[%emt 0:07:01]} 14. Rd1 {[%emt 0:02:37]} Rc5 {[%emt 0:08:00]} 15. Qe5 {[%emt 0:25:40]} Rh7 {[%emt 0:15:19]} 16. Qd4 {[%emt 0:06:49]} Qd7 {[%emt 0:11:59]} 17. a3 {[%emt 0:08:24]} Rc4 {[%emt 0:03:20]} 18. Qxc4 {[%emt 0:03:33]} dxc4 {[%emt 0:01:53]} 19. Rxd7 {[%emt 0:00:06]} Bxd7 {[%emt 0:00:40]} 20. Bxb7 {[%emt 0:00:16]} Bb5 {[%emt 0:00:20]} 21. Ke2 {[%emt 0:02:28]} g5 {[%emt 0:00:48]} 22. Rd1 {[%emt 0:01:43]} f5 {[%emt 0:01:01]} 23. Bd5 {[%emt 0:00:14]} Bg7 {[%emt 0:03:37]} 24. Kd2 {[%emt 0:02:11]} Bh6 {[%emt 0:01:31]} 25. Ke1 {[%emt 0:02:45]} g4 {[%emt 0:00:44]} 26. g3 {[%emt 0:00:12]} h4 {[%emt 0:00:30]} 27. Be6 {[%emt 0:00:42]} hxg3 {[%emt 0:00:24]} 28. hxg3 {[%emt 0:00:14]} f4 {[%emt 0:08:53]} 29. gxf4 {[%emt 0:03:48]} Bxf4 {[%emt 0:01:13]} 30. exf4 {[%emt 0:00:10]} Rh1+ {[%emt 0:05:12]} 31. Ke2 {[%emt 0:00:41]} Rh4 {[%emt 0:00:18]} 32. Rd4 {[%emt 0:00:35]} Bc6 {[%emt 0:00:28]} 33. Bxc4 {[%emt 0:00:51]} Bf3+ {[%emt 0:00:11]} 34. Ke3 {[%emt 0:04:00]} Rh3 {[%emt 0:00:14]} 35. f5 {[%emt 0:00:41]} Bc6+ {[%emt 0:01:27]} 36. Kf4 {[%emt 0:00:31]} Rf3+ {[%emt 0:00:32]} 37. Kxg4 {[%emt 0:00:23]} Rxf2 {[%emt 0:00:05]} 38. Kg5 {[%emt 0:01:13]} a5 {[%emt 0:00:20]} 39. Kf6 {[%emt 0:01:19]} Bd7 {[%emt 0:00:28]} 40. Bf7+ {[%emt 0:00:08]} 1-0

[Event "22nd Ruzomberok Open 2019"]
[Site "Ruzomberok"]
[Date "2019.07.06"]
[Round "8.28"]
[White "Kukan, Michal"]
[Black "Jakab, Stefan"]
[Result "1-0"]
[ECO "A05"]
[WhiteElo "1698"]
[BlackElo "1751"]
[Annotator "NA"]
[PlyCount "53"]
[EventDate "2019.06.29"]
[EventType "swiss"]
[EventCountry "SVK"]
[SourceTitle "playchess.com"]
[Source "ChessBase"]
[SourceQuality "1"]
[TimeControl "40/5400+30:1800+30"]

1. Nf3 {[%emt 0:00:00]} Nf6 {[%emt 0:00:00]} 2. Nc3 {[%emt 0:00:00]} Nc6 {[%emt 0:00:00]} 3. g3 {[%emt 0:00:00]} g6 {[%emt 0:00:00]} 4. Bg2 {[%emt 0:00:00]} Bg7 {[%emt 0:00:00]} 5. e4 {[%emt 0:00:18]} e5 {[%emt 0:01:14]} 6. d4 {[%emt 0:00:27]} Nxd4 {[%emt 0:08:08]} 7. Nxe5 {[%emt 0:04:55]} Nc6 {[%emt 0:03:40]} 8. Nc4 {[%emt 0:04:50]} d6 {[%emt 0:02:32]} 9. Bg5 {[%emt 0:08:01]} Be6 {[%emt 0:05:28]} 10. Nd5 {[%emt 0:01:40]} Bxd5 {[%emt 0:06:43]} 11. exd5 {[%emt 0:03:40]} Ne7 {[%emt 0:07:41]} 12. Qd4 {[%emt 0:07:32]} Nf5 {[%emt 0:03:57]} 13. Qd3 {[%emt 0:02:57]} Qe7+ {[%emt 0:03:33]} 14. Ne3 {[%emt 0:02:50]} Nxe3 {[%emt 0:00:17]} 15. Bxe3 {[%emt 0:01:36]} O-O {[%emt 0:01:37]} 16. O-O-O {[%emt 0:02:25]} Ng4 {[%emt 0:05:48]} 17. Bd4 {[%emt 0:00:46]} Ne5 {[%emt 0:05:24]} 18. Qc3 {[%emt 0:01:12]} f5 {[%emt 0:06:45]} 19. Rhe1 {[%emt 0:02:16]} Qd7 {[%emt 0:00:47]} 20. h3 {[%emt 0:02:41]} c5 {[%emt 0:06:10]} 21. dxc6 {[%emt 0:01:07]} Bh6+ {[%emt 0:01:58]} 22. f4 {[%emt 0:01:59]} Nxc6 {[%emt 0:01:51]} 23. Bd5+ {[%emt 0:00:54]} Rf7 {[%emt 0:00:01]} 24. Be6 {[%emt 0:04:31]} Qc7 {[%emt 0:02:56]} 25. Bf6 {[%emt 0:04:14]} Qb6 {[%emt 0:03:32]} 26. Rxd6 {[%emt 0:00:30]} Bf8 {[%emt 0:04:34]} 27. Bxf7+ {[%emt 0:01:30]} 1-0

[Event "22nd Ruzomberok Open 2019"]
[Site "Ruzomberok"]
[Date "2019.07.06"]
[Round "8.29"]
[White "Malinovsky, Jozef"]
[Black "Cernekova, Martina"]
[Result "0-1"]
[ECO "B90"]
[WhiteElo "1734"]
[BlackElo "1659"]
[Annotator "NA"]
[PlyCount "96"]
[EventDate "2019.06.29"]
[EventType "swiss"]
[EventCountry "SVK"]
[SourceTitle "playchess.com"]
[Source "ChessBase"]
[SourceQuality "1"]
[TimeControl "40/5400+30:1800+30"]

1. e4 {[%emt 0:00:00]} c5 {[%emt 0:00:51]} 2. Nf3 {[%emt 0:00:00]} d6 {[%emt 0:00:04]} 3. d4 {[%emt 0:00:00]} cxd4 {[%emt 0:00:07]} 4. Nxd4 {[%emt 0:00:00]} Nf6 {[%emt 0:00:09]} 5. Nc3 {[%emt 0:00:00]} a6 {[%emt 0:00:04]} 6. h3 {[%emt 0:00:09]} e5 {[%emt 0:00:26]} 7. Nb3 {[%emt 0:00:15]} Be6 {[%emt 0:00:19]} 8. Be3 {[%emt 0:01:42]} Be7 {[%emt 0:00:16]} 9. g4 {[%emt 0:02:29]} b5 {[%emt 0:01:29]} 10. Bg2 {[%emt 0:01:45]} Nc6 {[%emt 0:00:24]} 11. Qd2 {[%emt 0:00:59]} b4 {[%emt 0:02:47]} 12. Nd5 {[%emt 0:00:28]} Rb8 {[%emt 0:02:52]} 13. Nxe7 {[%emt 0:00:24]} Qxe7 {[%emt 0:00:53]} 14. O-O {[%emt 0:05:00]} a5 {[%emt 0:01:13]} 15. Rfd1 {[%emt 0:02:00]} Rd8 {[%emt 0:00:24]} 16. Bb6 {[%emt 0:00:45]} Rb8 {[%emt 0:01:42]} 17. Be3 {[%emt 0:02:10]} a4 {[%emt 0:00:26]} 18. Nc1 {[%emt 0:00:07]} Rd8 {[%emt 0:00:48]} 19. a3 {[%emt 0:01:34]} d5 {[%emt 0:00:31]} 20. exd5 {[%emt 0:04:35]} Nxd5 {[%emt 0:00:39]} 21. Qe2 {[%emt 0:00:47]} O-O {[%emt 0:00:43]} 22. axb4 {[%emt 0:03:59]} Nxe3 {[%emt 0:01:36]} 23. fxe3 {[%emt 0:00:11]} Nxb4 {[%emt 0:01:48]} 24. Rxa4 {[%emt 0:04:36]} Qc5 {[%emt 0:00:23]} 25. Rxd8 {[%emt 0:02:02]} Rxd8 {[%emt 0:00:17]} 26. c3 {[%emt 0:00:17]} Nd5 {[%emt 0:00:56]} 27. Bxd5 {[%emt 0:01:39]} Bxd5 {[%emt 0:00:54]} 28. Kf2 {[%emt 0:09:30]} g6 {[%emt 0:00:51]} 29. h4 {[%emt 0:01:11]} Qc6 {[%emt 0:00:33]} 30. Qa6 {[%emt 0:01:33]} Qxa6 {[%emt 0:00:36]} 31. Rxa6 {[%emt 0:00:10]} Bc4 {[%emt 0:00:25]} 32. Ra4 {[%emt 0:02:09]} Be6 {[%emt 0:01:00]} 33. Ke1 {[%emt 0:05:43]} h5 {[%emt 0:00:27]} 34. gxh5 {[%emt 0:00:17]} gxh5 {[%emt 0:00:07]} 35. Rb4 {[%emt 0:04:32]} Bg4 {[%emt 0:00:17]} 36. Ne2 {[%emt 0:00:14]} Ra8 {[%emt 0:00:46]} 37. Nc1 {[%emt 0:02:39]} Rd8 {[%emt 0:00:29]} 38. Ne2 {[%emt 0:00:03]} Ra8 {[%emt 0:00:18]} 39. c4 {[%emt 0:02:17]} Ra1+ {[%emt 0:00:15]} 40. Kd2 {[%emt 0:00:51]} Rh1 {[%emt 0:00:14]} 41. Ng3 {[%emt 0:31:28]} Rxh4 {[%emt 0:32:40]} 42. c5 {[%emt 0:00:45]} Kf8 {[%emt 0:01:21]} 43. Nxh5 {[%emt 0:00:34]} Rh2+ {[%emt 0:00:34]} 44. Kd3 {[%emt 0:00:29]} Bxh5 {[%emt 0:00:21]} 45. c6 {[%emt 0:01:44]} Ke7 {[%emt 0:00:28]} 46. Rc4 {[%emt 0:00:58]} Be2+ {[%emt 0:00:06]} 47. Kc3 {[%emt 0:00:01]} Bxc4 {[%emt 0:00:09]} 48. Kxc4 {[%emt 0:00:02]} Rxb2 {[%emt 0:00:12]} 0-1